Cogmind - Beta 17.1 @@@ ROGUE MODE // 2026.08.30 @ 15:50:28 Player: UnderDoug Result: Destroyed by P-60 Hacker with Shock Rifle Performance ------------- Evolutions (0) 0 Regions Visited (3) 600 Robots Destroyed (20) 100 Value Destroyed (567) 567 Prototype IDs (0) 0 Alien Tech Used (0) 0 Bonus (0) 0 TOTAL SCORE: 1267 Bonus ------- None Cogmind --------- Core Integrity 0/250 Matter 300/300 Energy 200/200 System Corruption 1% Temperature Cool (0) Movement Walking (120) Location -9/Recycling Parts ------- > --- POWER (1) -------- Subdweller Power Source > --- PROPULSION (2) --- Aluminum Leg Aluminum Leg > --- UTILITY (2) ------ Small Storage Unit Field Recycling Unit > --- WEAPON (2) ------- (None) > --- INVENTORY (8) ---- Subdweller Power Source Wheel Peak State ------------ > --- POWER ------------ Subdweller Power Source > --- PROPULSION ------- Light Treads Light Treads > --- UTILITY ---------- Scrap Shield > --- WEAPON ----------- Subdweller Beam Cannon Barrage Gun > --- INVENTORY -------- Ion Engine Aluminum Leg Aluminum Leg Assault Rifle Subdweller Shrapnel Launcher [Rating: 13] Favorites ----------- Power Subdweller Power Source Engine Subdweller Power Source Propulsion Light Treads Treads Light Treads Leg Aluminum Leg Wheel Wheel Utility Scrap Shield Device Disposable Heat Sink Storage Small Storage Unit Processor Visual Processing Unit Protection Scrap Shield Weapon Subdweller Beam Cannon Energy Gun Medium Laser Energy Cannon Subdweller Beam Cannon Ballistic Gun Barrage Gun Ballistic Cannon Light Cannon Launcher Subdweller Shrapnel Launcher Build | -11 -10 -10 -9 ------- Run | Yrd Mat Sub Rec Slots Evolved . | . . . . Power . | . . . . Propulsion . | . . . . Utility . | . . . . Weapon . | . . . . Parts Attached 29 | 7 6 8 8 Power 4 | 1 1 1 1 Engine 4 | 1 1 1 1 Core . | . . . . Reactor . | . . . . Propulsion 7 | 2 . 3 2 Treads 3 | . . 3 . Leg 2 | . . . 2 Wheel 2 | 2 . . . Hover . | . . . . Flight . | . . . . Utility 9 | 1 3 2 3 Device 3 | . 1 1 1 Storage 4 | 1 1 . 2 Processor 1 | . 1 . . Hackware . | . . . . Protection 1 | . . 1 . Artifact . | . . . . Weapon 9 | 3 2 2 2 Energy Gun 1 | 1 . . . Energy Cannon 1 | . . 1 . Ballistic Gun 4 | 2 . 1 1 Ballistic Cannon 1 | . 1 . . Launcher 2 | . 1 . 1 Special Weapon . | . . . . Impact Weapon . | . . . . Slashing Weapon . | . . . . Piercing Weapon . | . . . . Special Melee Weapon . | . . . . Unidentified Prototypes . | . . . . Parts Lost 11 | . 1 8 2 Power 1 | . 1 . . Propulsion 3 | . . 3 . Utility 2 | . . 2 . Weapon 5 | . . 3 2 Highest Loss Streak 3 | . 1 3 2 To Critical Strikes . | . . . . Average Backups 4 | 2 6 4 2 Power . | . . . 1 Propulsion 2 | 1 4 2 1 Utility . | . . . . Weapon . | . 1 1 . Tool/Special . | . . . . Unused Backups 2 | . 1 . 1 Power . | . . . . Propulsion 1 | . . . 1 Utility . | . . . . Weapon . | . . . . Tool/Special 1 | . 1 . . Average Slot Usage (%) 89 | . 93 88 94 Engine 13 | . 12 14 14 Treads 18 | . . 25 . Leg 4 | . . . 27 Wheel 3 | . 28 1 . Device 5 | . 7 4 7 Storage 4 | . 9 . 18 Processor 4 | . 6 4 . Protection 6 | . . 8 . Energy Cannon 8 | . . 12 . Ballistic Gun 8 | . 11 7 11 Ballistic Cannon 4 | . 2 6 . Launcher 4 | . 12 1 13 Peak Build Rating 13 | 6 8 13 10 Average Rating 10 | 5 7 11 9 On Entrance 4 | . 6 8 2 Avg Prop Armor Cover (%) . | . . . . Naked Turns . | . . . . Heaviest Build 34 | 12 15 34 28 Greatest Support 40 | 20 20 40 20 Greatest Overweight (x) 1 | . . 1 1 Average Overweight (x) . | . . . . Largest Inventory Capacity 8 | 8 8 5 8 Average Capacity 5 | 7 6 5 7 Most Carried 8 | 6 8 5 5 Average Carried 4 | 3 6 4 2 Final Capacity 8 | 8 5 5 8 Final Carried 6 | 6 5 5 2 Class Distribution -------------------- 63% | Mutant 36% | Subdweller-Mutant Dominant Class ---------------- Mutant | -10/Materials Subdweller-Mutant | -10/Subcaves Mutant | -9/Recycling Resources | -11 -10 -10 -9 ----------- Run | Yrd Mat Sub Rec Matter Collected 801 | 206 10 458 127 Remotely . | . . . . Salvage Created 640 | . 57 214 369 Parts 45 | . 8 16 21 Haulers Intercepted . | . . . . Recyclers Shooed . | . . . . Parts Field Recycled 7 | . . . 7 Retrieved Matter 5 | . . . 5 Parts Self-Destructed 12 | . . 12 . Prevented . | . . . . Parts Restored . | . . . . Kills | -11 -10 -10 -9 ------- Run | Yrd Mat Sub Rec Combat Hostiles Destroyed 13 | . 2 8 3 Guns 3 | . . 2 1 Cannons 4 | . . 4 . AOE 5 | . 2 1 2 Classes Destroyed 9 | . 3 2 4 Worker 1 | . 1 . . Recycler 4 | . . . 4 Watcher 2 | . 2 . . Swarmer 2 | . . 2 . Grunt 2 | . 2 . . Duelist 1 | . . . 1 Sentry 1 | . . . 1 Programmer 1 | . . . 1 Subdweller 6 | . . 6 . Best Kill Streak 6 | . 4 2 6 Combat Bots Only 2 | . 2 2 2 Max Kills in Single Turn 5 | . 2 1 5 Gunslinging . | . . . . Exploded 1 | . 1 1 1 Melee . | . . . . Uniques/NPCs Destroyed . | . . . . Combat | -11 -10 -10 -9 -------- Run | Yrd Mat Sub Rec Hostile Shots Fired 203 | . 10 173 20 Missed 77 | . 3 72 2 Hits 126 | . 7 101 18 Projectile 126 | . 7 101 18 Critical Strikes 2 | . . 1 1 Damage Taken 1727 | . 157 1242 328 Core 257 | . . 195 62 Absorbed by Shields . | . . . . Core Remaining (%) 100 | 100 . . . Volleys Fired 55 | . 10 39 6 Largest 2 | . 2 2 2 Hottest 110 | . 50 110 60 Shots Fired 95 | . 19 69 7 Gun 33 | . 10 18 5 Cannon 47 | . . 47 . Launcher 15 | . 9 4 2 Special . | . . . . Kinetic 56 | . 10 39 7 Thermal 26 | . . 26 . Explosive 13 | . 9 4 . Electromagnetic . | . . . . Robot Hit Streak 16 | . 1 16 3 Robot Miss Streak 4 | . 2 4 2 Penetration Max . | . . . . Secondary Targets . | . . . . Shots Hit Robots 36 | . 2 30 4 Core Hits 31 | . 9 13 9 Critical Kills 1 | . . 1 . Critical Parts Destroyed . | . . . . Critical Strikes 1 | . . 1 . Meltdown 1 | . . 1 . Melee Attacks . | . . . . Impact . | . . . . Slashing . | . . . . Piercing . | . . . . Sneak Attacks . | . . . . Combat Hostiles . | . . . . Follow-up Attacks . | . . . . Damage Inflicted 1625 | . 420 753 452 Guns 161 | . 61 69 31 Cannons 504 | . . 504 . Explosions 960 | . 359 180 421 Melee . | . . . . Ramming . | . . . . Kinetic 811 | . 61 298 452 Thermal 275 | . . 275 . Explosive 539 | . 359 180 . Electromagnetic . | . . . . Impact . | . . . . Slashing . | . . . . Piercing . | . . . . Highest Corruption 1 | . . . 1 Average Corruption 1 | . . . 1 Corruption Purged . | . . . . Corruption Blocked . | . . . . Overload Shots . | . . . . Overflow Damage 77 | . 60 6 11 Projectiles 6 | . . 6 . Explosions 71 | . 60 . 11 Melee . | . . . . Knockbacks . | . . . . Impact . | . . . . Kinetic . | . . . . Secondary . | . . . . Self-Inflicted Damage 165 | . 80 30 55 Shots 4 | . 2 1 1 Rammed . | . . . . Targets Rammed . | . . . . Kicked . | . . . . Crushed . | . . . . Highest Temperature 218 | . 32 218 18 Average Temperature 37 | . 14 47 10 Received Heat Transfer 881 | . 42 812 27 Siege Activations . | . . . . Martial Activations . | . . . . Shielding Activations . | . . . . Robots Disrupted . | . . . . Combat Hostiles . | . . . . Robots Corrupted . | . . . . Combat Hostiles . | . . . . Parts Fried . | . . . . Impact Corruptions . | . . . . Robots Melted 1 | . . 1 . Combat Hostiles 1 | . . 1 . Parts Melted 1 | . . 1 . Heat Transferred 370 | . . 370 . Parts Sabotaged . | . . . . Parts Stolen . | . . . . Parts Stripped . | . . . . Power Chain Reactions . | . . . . Alert | -11 -10 -10 -9 ------- Run | Yrd Mat Sub Rec Maximum Alert Level . | . . . . Low Security (%) 100 | 100 100 . 100 Level 1 . | . . . . Level 2 . | . . . . Level 3 . | . . . . Level 4 . | . . . . Level 5 . | . . . . High Security . | . . . . Max Security . | . . . . Peak Influence 85 | . 85 . 62 Initial 52 | . . . 52 Average 16 | . 31 . 10 Influence Increases 455 | . 179 160 116 Destroy 0b10 Robot/C 140 | . 40 40 60 Destroy 0b10 Robot/NC 40 | . 15 . 25 Destroy Leader 14 | . 14 . . Successful Hack 22 | . 17 . 5 Disable Machine 45 | . 45 . . Destroy Structure 74 | . 48 . 26 Lose Combat Pursuer 120 | . . 120 . Influence Decreases 393 | . 115 113 165 Entered New Map 91 | . . 32 59 Time Decay 208 | . 81 41 86 Lost Part 70 | . 10 40 20 Purge Threat 24 | . 24 . . Squads Dispatched 1 | . 1 . . Investigation . | . . . . Extermination . | . . . . Reinforcement 1 | . 1 . . Assault . | . . . . Garrison . | . . . . Intercept . | . . . . Searches Triggered . | . . . . Construction Impeded . | . . . . Haulers Reinforced . | . . . . Active Scanning Responses . | . . . . Cargo Convoy Interrupts . | . . . . Stealth | -11 -10 -10 -9 --------- Run | Yrd Mat Sub Rec Distress Signals . | . . . . Communications Jammed . | . . . . Distress Signals . | . . . . Times Spotted 27 | . 6 16 5 Peak Tracking Total 6 | . 3 6 3 Tactical Retreats 3 | . . 3 . Traps | -11 -10 -10 -9 ------- Run | Yrd Mat Sub Rec Traps Triggered 1 | . . 1 . Indirectly . | . . . . Trap Hack Attempts . | . . . . Triggered . | . . . . Disarmed . | . . . . Reprogrammed . | . . . . Reused . | . . . . Traps Extracted . | . . . . Installed . | . . . . Triggered . | . . . . Machines | -11 -10 -10 -9 ---------- Run | Yrd Mat Sub Rec Machines Disabled 3 | . 3 . . Max in Single Turn 2 | . 2 . . Machines Repaired . | . . . . Machines Dismantled . | . . . . Machines Sabotaged . | . . . . Overloaded Fab Kills . | . . . . Hacking | -11 -10 -10 -9 --------- Run | Yrd Mat Sub Rec Machines Accessed 7 | . 6 . 1 Terminals 6 | . 5 . 1 Fabricators . | . . . . Repair Stations . | . . . . Recycling Units 1 | . 1 . . Scanalyzers . | . . . . Garrison Access . | . . . . Total Hacks 13 | . 11 . 2 Successful 10 | . 8 . 2 Failed 3 | . 3 . . Catastrophic . | . . . . Database Lockouts . | . . . . Manual . | . . . . Terminals 12 | . 10 . 2 Fabricators . | . . . . Repair Stations . | . . . . Recycling Units 1 | . 1 . . Scanalyzers . | . . . . Garrison Access . | . . . . Terminal Hacks 9 | . 7 . 2 Repair Station Index 1 | . 1 . . Alert Level 2 | . 1 . 1 Unreport Threat 1 | . 1 . . Locate Traps 3 | . 3 . . Investigation Status 1 | . . . 1 Registered Prototypes 1 | . 1 . . Fabricator Hacks . | . . . . Repair Station Hacks . | . . . . Recycling Unit Hacks 1 | . 1 . . Report Inventory 1 | . 1 . . Scanalyzer . | . . . . Garrison Access Hacks . | . . . . Unauthorized Hacks . | . . . . Terminals . | . . . . Fabricators . | . . . . Repair Stations . | . . . . Recycling Units . | . . . . Scanalyzers . | . . . . Garrison Access . | . . . . Data Cores Recovered . | . . . . Used . | . . . . Hacking Detections 4 | . 4 . . Full Trace Events 1 | . 1 . . Feedback Events . | . . . . Feedback Blocked . | . . . . Robot Schematics Acquired . | . . . . Robots Built . | . . . . Authchips . | . . . . Time . | . . . . Total Robot Build Rating . | . . . . Part Schematics Acquired . | . . . . Parts Built . | . . . . Authchips . | . . . . Time . | . . . . Total Part Build Rating . | . . . . Part Studies Acquired . | . . . . Parts Repaired . | . . . . Time . | . . . . Parts Recycled . | . . . . Recycled Matter . | . . . . Retrieved Matter . | . . . . Retrieved Components . | . . . . Parts Scanalyzed . | . . . . Part Schematics Acquired . | . . . . Parts Damaged . | . . . . Bothacking | -11 -10 -10 -9 ------------ Run | Yrd Mat Sub Rec Used RIF Installer . | . . . . Robots Hacked . | . . . . Non-combat . | . . . . Combat . | . . . . Robot Hacks Applied . | . . . . Relay Couplers Released . | . . . . Fabnet Peak Effective % . | . . . . Robots Rewired . | . . . . Allies Hacked . | . . . . Hacks Repelled . | . . . . Allies | -11 -10 -10 -9 -------- Run | Yrd Mat Sub Rec Total Allies . | . . . . Largest Group . | . . . . Highest-Rated Group . | . . . . Highest-Rated Ally . | . . . . Total Orders . | . . . . Ally Attacks . | . . . . Total Damage . | . . . . Kills . | . . . . Allies Corrupted . | . . . . Allies Melted . | . . . . Intel | -11 -10 -10 -9 ------- Run | Yrd Mat Sub Rec Active Infowar (turns) 701 | . 121 580 . Optics 688 | . 108 580 . Sensors 280 | . 121 159 . Robot Analysis Total . | . . . . Derelict Logs Recovered 1 | . . 1 . Drone Launches . | . . . . Drone Recoveries . | . . . . Exploration | -11 -10 -10 -9 ------------- Run | Yrd Mat Sub Rec Turns Passed 2435 | 49 234 1718 434 Spaces Moved 1492 | 40 233 1002 217 Core 10 | 2 . 5 3 Treads 911 | . . 911 . Legs 214 | . . . 214 Wheels 357 | 38 233 86 . Hover . | . . . . Flight . | . . . . Fastest Speed 50 | 50 80 80 100 Average Speed 144 | 78 80 153 183 Slowest Speed 240 | 80 80 240 190 Overloaded Moves . | . . . . Propulsion Burnouts . | . . . . Robots Hopped . | . . . . Potential Cave-ins . | . . . . Cave-ins Triggered . | . . . . Exploration Rate (%) 34 | 3 40 56 40 Regions Visited 3 Branch Regions 2 Pre-discovered Areas . | . . . . Known Exits Taken . | . . . . Unknown Exits Taken 3 | 1 1 1 . Scrap Searched 3 | . . 3 . Spaces Dug 1 | . . 1 . Terrain Destroyed 88 | . 53 13 22 Melee . | . . . . Projectile 4 | . . 4 . AOE 84 | . 53 9 22 Terrain Rammed . | . . . . Walls Destroyed . | . . . . Machines Disabled . | . . . . Actions | -11 -10 -10 -9 --------- Run | Yrd Mat Sub Rec Total 1684 | 53 264 1121 246 Wait 65 | . 6 49 10 Move 1489 | 39 232 1001 217 Hop . | . . . . Pick Up 24 | 6 3 11 4 Fast Attach 11 | 6 4 1 . Attach 12 | . 2 4 6 Detach 1 | . 1 . . Swap 8 | 2 . 4 2 Drop 17 | . 6 10 1 Fire 55 | . 10 39 6 Melee . | . . . . Ram . | . . . . Kick . | . . . . Crush . | . . . . Escape Stasis . | . . . . Rewire . | . . . . Trap . | . . . . Miscellaneous 2 | . . 2 . Route ------- -11/Scrapyard -10/Materials -10/Subcaves -9/Recycling History --------- Turn | Location | Event 19 | -11/Scrapyard | Discovered new exit (range 16) 50 | -11/Scrapyard | Entered Materials 274 | -10/Materials | Discovered new exit (range 7) 284 | -10/Materials | Entered Subcaves 308 | -10/Subcaves | Build established: Mutant 311 | -10/Subcaves | Shifting Twisted Machinery released Battle Rifle 344 | -10/Subcaves | Shifting Twisted Machinery released Spk. Treads 407 | -10/Subcaves | Learned 2 Materials zone layouts 1047 | -10/Subcaves | Disturbed a concealed Subdweller 1371 | -10/Subcaves | Build established: Subdweller-Mutant 1785 | -10/Subcaves | A swath of the cavern ceiling suddenly collapsed 1930 | -10/Subcaves | Shifting Twisted Machinery released Mak. Flight Unit 1978 | -10/Subcaves | Discovered new exit (range 15) 1997 | -10/Subcaves | Core integrity fell below 50% 2002 | -10/Subcaves | Entered Recycling 2027 | -9/Recycling | Lost 3 parts (1n2w) 2260 | -9/Recycling | Build established: Mutant 2428 | -9/Recycling | Core integrity fell below 20% 2436 | -9/Recycling | Destroyed by P-60 Hacker with Shock Rifle Last Messages --------------- Acquired 18 matter. U-05 Engineer lays Concrete. U-05 Engineer builds a Wall. U-05 Engineer lays Concrete. P-60 Hacker springs to life. P-60 Hacker destroyed. R-06 Scavenger collects Gravmag System. R-06 Scavenger collects Mic. Nuclear Core. Assault Rifle destroyed. Sub. Shrapnel Launcher destroyed. Destroyed Sub. Shrapnel Launcher. L-31 Rogue destroyed. R-06 Scavenger destroyed. G-34 Mercenary destroyed. R-06 Scavenger destroyed. Destroyed Lgt. Ion Engine. R-06 Scavenger destroyed. D-53 Grenadier springs to life. Acquired 22 matter. R-06 Scavenger collects Tractor Beam. Map ----- +----------------------------------------------------+ | ????????????????????????????????????????????????? | | ????????????????????????????????????????????????? | | ????????????????????????????????????????????????? | | ????????????????????????????????????????????????? | | ????????????????????????????????????????????????? | | ????????????????????????????????????????????????? | | ????????????????????????????????????????????????? | | ????????????????????????????????????????????????? | | ????????????????????????????????????????????????? | | ????????????????????????????????????????????????? | | ????????????????????????????????????????????????? | | ???????##???????????????????????????????????????? | | ??##### #??##########???????????????????????????? | | ??# #?## #???????????????????????????? | | ??# #?# #???????????????????????????? | | ??# #??# ###???##########????????????? | | ??# #??# ##;### i #????????????? | | ??# #?## ; + i #????????????? | | ??# #?# ; ;! %d [l#????????????? | | ??# #??# ; ;%u d i #????????????? | | ??# #??# " %!! [ a bik#????????????? | | ?## #??# ##;*p[*| h #????????????? | | ?# ########+#####;%*=%=r %% #????????????? | | ??# + #???#;= ;!p #????????????? | | ??# # #???#;% ;;###/#####????????????? | | ??##+#### ## ?## @rr#????????????????????? | | ???# #???????????????? | | ???# ###"Y"### ## #???????????????? | | ???# #?#"""??? #?? ????????????? | | ???# #?####??? #??? ? ?????????? | | ???# #????????+#???? ?? ??????????? | | ???# ###????????????? ?????????????? | | ???# ""#??????????????##????????????? | | ???# Y"#????????????????????????????? | | ???# ""?????????????????????????????? | | ???# ##?????????????????????????????? | | ???# #??????????????????????????????? | | ???# #??????????????????????????????? | | ???# #??????????????????????????????? | | ???# ###????????????????????????????? | | ??## ""#????????????????????????????? | | ??#" Y"#????????????????????????????? | | ?##" ""#????????????????????????????? | | ?# " ###????????????????????????????? | | ?#"" #??????????????????????????????? | | ?#" % ######?????????????????????????? | | ?#"# ##########????????????????? | | ?### + #????????????????? | | ??# ####! ! #????????????????? | | ??# #??# / #????????????????? | +----------------------------------------------------+ Best States ------------- Heat Dissipation 25 Coolant Potential 50 Energy Generation 15 Energy Capacity 350 Matter Stores 300 Matter Capacity 300 Sight Range 18 Robot Scan Range 14 Terrain Scan Density 10 Armor Coverage 800 Evasion (%) 45 Recoil Reduction 2 Item Schematics ----------------- None Robot Schematics ------------------ None Fabricated ------------ Nothing Repaired ---------- Nothing Studied --------- None Alien Tech Used ----------------- None Achievements -------------- Survival Of The Most Covered Challenges ------------ None Game ------ Seed PortableStormNeutralizer Manual? 0 Play Time 00:21:06 Cumulative 5.9 hours Start 2026.08.30 @ 15:24:36 End 2026.08.30 @ 15:50:28 Sessions 1 Manual Loads 0 Difficulty Rogue Special Mode None Game No. 12 Rogue 12 Adventurer 0 Explorer 0 Win Type - Total 0 Types 0/0/0/0/0/0/0/0/0/0 Lore% 12 Gallery% 10 Achievement% 11 Wizard Run 0 Options --------- Layout 1 ASCII 0 Keyboard 0 Movement Numpad Keybinds 0 Fullscreen 2 Font 24/X11 Map View 50x35 Zoom Use 0% Tactical HUD 0 Map Filters NONE Filters NONE Steam 1 RUN: bfa6a2f7-b96a-4c3c-af60-4563a3dd7983